Cogmind - Beta 17 @@@ ROGUE MODE // 2026.07.26 @ 16:28:08 Player: gorb Result: Destroyed by as-92906 with Assembled Blade Performance ------------- Evolutions (0) 0 Regions Visited (2) 400 Robots Destroyed (1) 5 Value Destroyed (5) 5 Prototype IDs (0) 0 Alien Tech Used (0) 0 Bonus (0) 0 TOTAL SCORE: 410 Bonus ------- None Cogmind --------- Core Integrity 0/250 Matter 295/300 Energy 95/100 System Corruption 4% Temperature Cool (0) Movement Walking (120) Location -10/Mines Parts ------- > --- POWER (1) -------- (None) > --- PROPULSION (2) --- Aluminum Leg > --- UTILITY (2) ------ Small Storage Unit > --- WEAPON (2) ------- Hammer > --- INVENTORY (8) ---- Ion Engine Light Ion Engine Structural Scanner Terrain Scanner EM Pulse Gun Medium Laser Assault Rifle Peak State ------------ > --- POWER ------------ Light Ion Engine > --- PROPULSION ------- Wheel Compact Wheel > --- UTILITY ---------- Small Storage Unit Terrain Scan Processor > --- WEAPON ----------- Assault Rifle Welding Torch > --- INVENTORY -------- Ion Engine Ion Engine Aluminum Leg Aluminum Leg Structural Scanner Terrain Scanner EM Pulse Gun Medium Laser [Rating: 8] Favorites ----------- Power Ion Engine Engine Ion Engine Propulsion Wheel Leg Aluminum Leg Wheel Wheel Utility Small Storage Unit Storage Small Storage Unit Processor Terrain Scan Processor Weapon Assault Rifle Energy Gun Medium Laser Ballistic Gun Assault Rifle Special Weapon Welding Torch Impact Weapon Hammer Build | -11 -10 -10 ------- Run | Yrd Mat Min Slots Evolved . | . . . Power . | . . . Propulsion . | . . . Utility . | . . . Weapon . | . . . Parts Attached 14 | 6 2 6 Power 2 | 2 . . Engine 2 | 2 . . Core . | . . . Reactor . | . . . Propulsion 4 | 2 . 2 Treads . | . . . Leg 2 | . . 2 Wheel 2 | 2 . . Hover . | . . . Flight . | . . . Utility 2 | 1 1 . Device . | . . . Storage 1 | 1 . . Processor 1 | . 1 . Hackware . | . . . Protection . | . . . Artifact . | . . . Weapon 6 | 1 1 4 Energy Gun 1 | . . 1 Energy Cannon . | . . . Ballistic Gun 3 | 1 . 2 Ballistic Cannon . | . . . Launcher . | . . . Special Weapon 1 | . 1 . Impact Weapon 1 | . . 1 Slashing Weapon . | . . . Piercing Weapon . | . . . Special Melee Weapon . | . . . Unidentified Prototypes . | . . . Parts Lost 7 | . . 7 Power 1 | . . 1 Propulsion 2 | . . 2 Utility 1 | . . 1 Weapon 3 | . . 3 Highest Loss Streak 4 | . . 4 To Critical Strikes . | . . . Average Backups 6 | 4 7 7 Power 1 | . 1 1 Propulsion 1 | 2 2 1 Utility 1 | . 1 2 Weapon 2 | 2 2 2 Tool/Special . | . . . Unused Backups 5 | . . 5 Power 2 | . . 2 Propulsion . | . . . Utility 2 | . . 2 Weapon 1 | . . 1 Tool/Special . | . . . Average Slot Usage (%) 88 | . 89 87 Engine 11 | . 14 10 Leg 5 | . . 9 Wheel 21 | . 28 17 Storage 14 | . 14 14 Processor 7 | . 9 6 Ballistic Gun 21 | . 14 25 Special Weapon 4 | . 8 1 Peak Build Rating 8 | 5 8 8 Average Rating 6 | 1 7 6 On Entrance 4 | . 5 8 Avg Prop Armor Cover (%) 10 | . . 10 Naked Turns . | . . . Heaviest Build 13 | 10 11 13 Greatest Support 26 | 26 26 26 Greatest Overweight (x) 1 | 1 . . Average Overweight (x) . | . . . Largest Inventory Capacity 8 | 8 8 8 Average Capacity 7 | 6 8 8 Most Carried 8 | 7 8 8 Average Carried 6 | 4 7 6 Final Capacity 8 | 8 8 8 Final Carried 8 | 5 8 7 Class Distribution -------------------- 100% | Mutant Dominant Class ---------------- Mutant | -10/Materials Mutant | -10/Mines Resources | -11 -10 -10 ----------- Run | Yrd Mat Min Matter Collected 397 | 185 12 200 Remotely . | . . . Salvage Created 26 | . 12 14 Parts 5 | . 5 . Haulers Intercepted . | . . . Recyclers Shooed . | . . . Parts Field Recycled . | . . . Retrieved Matter . | . . . Parts Self-Destructed . | . . . Prevented . | . . . Parts Restored . | . . . Kills | -11 -10 -10 ------- Run | Yrd Mat Min Combat Hostiles Destroyed 2 | . . 2 Guns 2 | . . 2 Classes Destroyed 2 | . 1 1 Builder 1 | . 1 . Assembled 2 | . . 2 Best Kill Streak 1 | . 1 1 Combat Bots Only 1 | . . 1 Max Kills in Single Turn 1 | . 1 1 Gunslinging . | . . . Exploded . | . . . Melee . | . . . Uniques/NPCs Destroyed . | . . . Combat | -11 -10 -10 -------- Run | Yrd Mat Min Hostile Shots Fired 102 | . 6 96 Missed 27 | . 2 25 Hits 75 | . 4 71 Melee 10 | . . 10 Projectile 65 | . 4 61 Critical Strikes 1 | . . 1 Part Disruptions 5 | . . 5 Damage Taken 1038 | . 30 1008 Core 254 | . 6 248 Absorbed by Shields . | . . . Core Remaining (%) 100 | 100 . . Volleys Fired 31 | . 3 28 Largest 2 | . 1 2 Hottest 50 | . 20 50 Shots Fired 40 | . 3 37 Gun 39 | . 2 37 Cannon . | . . . Launcher . | . . . Special 1 | . 1 . Kinetic 38 | . 2 36 Thermal 2 | . 1 1 Explosive . | . . . Electromagnetic . | . . . Robot Hit Streak 6 | . 2 6 Robot Miss Streak 5 | . 1 5 Penetration Max . | . . . Secondary Targets . | . . . Shots Hit Robots 20 | . 2 18 Core Hits 9 | . 1 8 Critical Kills . | . . . Critical Parts Destroyed . | . . . Critical Strikes . | . . . Melee Attacks 3 | . . 3 Impact 3 | . . 3 Slashing . | . . . Piercing . | . . . Sneak Attacks . | . . . Combat Hostiles . | . . . Follow-up Attacks . | . . . Damage Inflicted 223 | . 23 200 Guns 190 | . 23 167 Cannons . | . . . Explosions . | . . . Melee 33 | . . 33 Ramming . | . . . Kinetic 190 | . 23 167 Thermal . | . . . Explosive . | . . . Electromagnetic . | . . . Impact 33 | . . 33 Slashing . | . . . Piercing . | . . . Highest Corruption 4 | . . 4 Average Corruption 4 | . . 4 Corruption Purged . | . . . Corruption Blocked . | . . . Effects 2 | . . 2 Matter Fused 1 | . . 1 Heat Flow Errors 1 | . . 1 Overload Shots . | . . . Overflow Damage . | . . . Projectiles . | . . . Explosions . | . . . Melee . | . . . Knockbacks . | . . . Impact . | . . . Kinetic . | . . . Secondary . | . . . Self-Inflicted Damage . | . . . Shots . | . . . Rammed . | . . . Targets Rammed . | . . . Kicked . | . . . Crushed . | . . . Highest Temperature 205 | . . 205 Average Temperature 62 | . . 62 Received Heat Transfer 440 | . . 440 Siege Activations . | . . . Martial Activations . | . . . Shielding Activations . | . . . Robots Disrupted . | . . . Combat Hostiles . | . . . Robots Corrupted . | . . . Combat Hostiles . | . . . Parts Fried . | . . . Impact Corruptions . | . . . Robots Melted . | . . . Combat Hostiles . | . . . Parts Melted . | . . . Heat Transferred . | . . . Parts Sabotaged . | . . . Parts Stolen . | . . . Parts Stripped . | . . . Power Chain Reactions . | . . . Alert | -11 -10 -10 ------- Run | Yrd Mat Min Maximum Alert Level . | . . . Low Security (%) 100 | 100 100 100 Level 1 . | . . . Level 2 . | . . . Level 3 . | . . . Level 4 . | . . . Level 5 . | . . . High Security . | . . . Max Security . | . . . Peak Influence 15 | . 9 15 Initial 3 | . . 3 Average 1 | . 1 1 Influence Increases 41 | . 26 15 Destroy 0b10 Robot/NC 5 | . 5 . Successful Hack 21 | . 21 . Lose Combat Pursuer 15 | . . 15 Influence Decreases 41 | . 17 24 Entered New Map 6 | . . 6 Time Decay 32 | . 17 15 Lost Part 3 | . . 3 Squads Dispatched 1 | . 1 . Investigation . | . . . Extermination . | . . . Reinforcement 1 | . 1 . Assault . | . . . Garrison . | . . . Intercept . | . . . Searches Triggered . | . . . Construction Impeded . | . . . Haulers Reinforced . | . . . Active Scanning Responses . | . . . Cargo Convoy Interrupts . | . . . Stealth | -11 -10 -10 --------- Run | Yrd Mat Min Distress Signals . | . . . Communications Jammed . | . . . Distress Signals . | . . . Times Spotted 18 | . 6 12 Peak Tracking Total 5 | . 3 5 Tactical Retreats 3 | . . 3 Traps | -11 -10 -10 ------- Run | Yrd Mat Min Traps Triggered . | . . . Indirectly . | . . . Trap Hack Attempts . | . . . Triggered . | . . . Disarmed . | . . . Reprogrammed . | . . . Reused . | . . . Traps Extracted . | . . . Installed . | . . . Triggered . | . . . Machines | -11 -10 -10 ---------- Run | Yrd Mat Min Machines Disabled . | . . . Max in Single Turn . | . . . Machines Repaired . | . . . Machines Dismantled . | . . . Machines Sabotaged . | . . . Overloaded Fab Kills . | . . . Hacking | -11 -10 -10 --------- Run | Yrd Mat Min Machines Accessed 3 | . 3 . Terminals 3 | . 3 . Fabricators . | . . . Repair Stations . | . . . Recycling Units . | . . . Scanalyzers . | . . . Garrison Access . | . . . Total Hacks 6 | . 6 . Successful 6 | . 6 . Failed . | . . . Catastrophic . | . . . Database Lockouts . | . . . Manual 6 | . 6 . Terminals 6 | . 6 . Fabricators . | . . . Repair Stations . | . . . Recycling Units . | . . . Scanalyzers . | . . . Garrison Access . | . . . Terminal Hacks . | . . . Fabricator Hacks . | . . . Repair Station Hacks . | . . . Recycling Unit Hacks . | . . . Scanalyzer . | . . . Garrison Access Hacks . | . . . Unauthorized Hacks 6 | . 6 . Terminals 6 | . 6 . Track 1 | . 1 . Assimilate 2 | . 2 . Botnet 3 | . 3 . Fabricators . | . . . Repair Stations . | . . . Recycling Units . | . . . Scanalyzers . | . . . Garrison Access . | . . . Data Cores Recovered . | . . . Used . | . . . Hacking Detections 2 | . 2 . Full Trace Events . | . . . Feedback Events . | . . . Feedback Blocked . | . . . Robot Schematics Acquired . | . . . Robots Built . | . . . Authchips . | . . . Time . | . . . Total Robot Build Rating . | . . . Part Schematics Acquired . | . . . Parts Built . | . . . Authchips . | . . . Time . | . . . Total Part Build Rating . | . . . Part Studies Acquired . | . . . Parts Repaired . | . . . Time . | . . . Parts Recycled . | . . . Recycled Matter . | . . . Retrieved Matter . | . . . Retrieved Components . | . . . Parts Scanalyzed . | . . . Part Schematics Acquired . | . . . Parts Damaged . | . . . Bothacking | -11 -10 -10 ------------ Run | Yrd Mat Min Used RIF Installer . | . . . Robots Hacked . | . . . Non-combat . | . . . Combat . | . . . Robot Hacks Applied . | . . . Relay Couplers Released . | . . . Fabnet Peak Effective % . | . . . Robots Rewired . | . . . Allies Hacked . | . . . Hacks Repelled . | . . . Allies | -11 -10 -10 -------- Run | Yrd Mat Min Total Allies . | . . . Largest Group . | . . . Highest-Rated Group . | . . . Highest-Rated Ally . | . . . Total Orders . | . . . Ally Attacks . | . . . Total Damage . | . . . Kills . | . . . Allies Corrupted . | . . . Allies Melted . | . . . Intel | -11 -10 -10 ------- Run | Yrd Mat Min Active Infowar (turns) . | . . . Robot Analysis Total . | . . . Derelict Logs Recovered . | . . . Drone Launches . | . . . Drone Recoveries . | . . . Exploration | -11 -10 -10 ------------- Run | Yrd Mat Min Turns Passed 346 | 46 113 187 Spaces Moved 270 | 44 112 114 Core 20 | 20 . . Treads . | . . . Legs 19 | . . 19 Wheels 231 | 24 112 95 Hover . | . . . Flight . | . . . Fastest Speed 50 | 50 90 90 Average Speed 88 | 68 90 95 Slowest Speed 120 | 100 90 120 Overloaded Moves . | . . . Propulsion Burnouts . | . . . Robots Hopped . | . . . Potential Cave-ins . | . . . Cave-ins Triggered . | . . . Exploration Rate (%) 17 | 3 25 23 Regions Visited 2 Branch Regions 1 Pre-discovered Areas . | . . . Known Exits Taken . | . . . Unknown Exits Taken 2 | 1 1 . Scrap Searched 2 | . . 2 Spaces Dug . | . . . Terrain Destroyed . | . . . Melee . | . . . Projectile . | . . . AOE . | . . . Terrain Rammed . | . . . Walls Destroyed . | . . . Machines Disabled . | . . . Actions | -11 -10 -10 --------- Run | Yrd Mat Min Total 335 | 58 120 157 Wait . | . . . Move 268 | 43 111 114 Hop . | . . . Pick Up 14 | 7 4 3 Fast Attach 5 | 3 1 1 Attach 7 | 2 1 4 Detach . | . . . Swap 4 | 2 . 2 Drop 3 | 1 . 2 Fire 31 | . 3 28 Melee 3 | . . 3 Ram . | . . . Kick . | . . . Crush . | . . . Escape Stasis . | . . . Rewire . | . . . Trap . | . . . Miscellaneous . | . . . Route ------- -11/Scrapyard -10/Materials -10/Mines History --------- Turn | Location | Event 11 | -11/Scrapyard | Discovered new exit (range 15) 47 | -11/Scrapyard | Entered Materials 151 | -10/Materials | Discovered new exit (range 11) 160 | -10/Materials | Entered Mines 161 | -10/Mines | Assembled infested the area 166 | -10/Mines | Assisted by a Guerilla fighting off Assembled 274 | -10/Mines | Core integrity fell below 50% 315 | -10/Mines | Build established: Mutant 322 | -10/Mines | Lost 4 parts (1p1n1u1w) 346 | -10/Mines | Core integrity fell below 20% 347 | -10/Mines | Destroyed by as-92906 with Assembled Blade Last Messages --------------- as-96304 destroyed. Lgt. Assault Rifle destroyed. Com. Wheel destroyed. Dropped Wheel. as-68644 destroyed. Ion Engine destroyed. Destroyed Asb. F-torch. System corrupted: Heat flow error (+230). as-30904 destroyed. Acquired 17 matter. Acquired Lgt. Ion Engine. Acquired 19 matter. Acquired 12 matter. Acquired 2 matter. Acquired 5 matter. Acquired 7 matter. Acquired 4 matter. Acquired Hammer. Aluminum Leg destroyed. Lgt. Assault Rifle destroyed. Map ----- +----------------------------------------------------+ | | | | | | | | | | | | | | | | | | | | | | | | | | | ?????????????????????????????????????????????????? | | ?????????????????????????????????????############# | | ????????????????????????????????????## | | ???????????????????????????????????## | | ?????????????????########?????????## ##### | | ?????????????????# ######## #??## | | ???????????????## ##?## | | ?????????????### ??### ! #######??# | | ????????????## ?????######### ##???????# # | | ???????????## #????????????## ##?####??## ## | | ??????????## """ #???????????## ## ##??#"##? | | ??????##### """!############# ##?###?? | | #### """ %@ #?????? | | a a ##?????? | | ############ ###??????? | | #### =| #??????????# ##????????? | | ????????#### ##??????????## #?????????? | | ???????????# ##????????????## #????????? | | ???????????# ##??????????????# #????????? | | ??????????## ##???????????????# #????????? | | ??????????# #????????????????# #????????? | | ??????????# #??????????????? ##????????? | | ??????????# #??????????????? #?????????? | | ??????????## ##??????????????? ##?????????? | | ???????????####??????????????? *% #??????????? | | ?????????????????????????????? ] #??????????? | | ?????????????????????????????? "" ??????????? | | ?????????????????????????????? "" = ??????????? | | ????????????????????????????? ??" !%! ?????????? | | ????????????????????????????? ??? %!???????????? | | ?????????????????????????????????? !?????????????? | | ?????????????????????????????????????????????????? | | ?????????????????????????????????????????????????? | | ?????????????????????????????????????????????????? | | ?????????????????????????????????????????????????? | | ?????????????????????????????????????????????????? | | ?????????????????????????????????????????????????? | +----------------------------------------------------+ Best States ------------- Heat Dissipation 25 Energy Generation 10 Energy Capacity 250 Matter Stores 300 Matter Capacity 300 Sight Range 16 Terrain Scan Density 85 Evasion (%) 50 Item Schematics ----------------- None Robot Schematics ------------------ None Fabricated ------------ Nothing Repaired ---------- Nothing Studied --------- None Alien Tech Used ----------------- None Achievements -------------- None Challenges ------------ None Game ------ Seed CorruptionChipUnit Manual? 0 Play Time 00:13:03 Cumulative 45.4 hours Start 2026.07.26 @ 01:11:04 End 2026.07.26 @ 16:28:08 Sessions 2 Manual Loads 0 Difficulty Rogue Special Mode None Game No. 79 Rogue 77 Adventurer 0 Explorer 2 Win Type - Total 0 Types 0/0/0/0/0/0/0/0/0/0 Lore% 25 Gallery% 28 Achievement% 20 Wizard Run 0 Options --------- Layout 1 ASCII 0 Keyboard 0 Movement Mouse Keybinds 0 Fullscreen 1 Font 24/Smallcaps Map View 50x35 Zoom Use 0% Tactical HUD 0 Map Filters NONE Filters NONE Steam 1 RUN: 1ba2c454-e40a-49e5-bdc7-46e9a6e4fc21